bitfinex-derivatives/quotes_BTCF0:USTF0_20251228
["timestamp","ask_amount","ask_price","bid_price","bid_amount"]
[1766959003414,0.0239934,87616.0,87605.0,0.0114227]
[1766959003617,0.05712,87617.0,87605.0,0.0114227]
[1766959003822,0.0239934,87616.0,87605.0,0.0114227]
[1766959004115,0.05712,87617.0,87605.0,0.0114227]
[1766959004307,0.02399343,87616.0,87605.0,0.0114227]
[1766959004507,0.05712,87617.0,87605.0,0.0114227]
[1766959004716,0.02399343,87616.0,87605.0,0.0114227]
[1766959004914,0.05712,87617.0,87605.0,0.0114227]
[1766959005116,0.02399343,87616.0,87605.0,0.0114227]
[1766959005316,0.05712,87617.0,87605.0,0.0114227]
[1766959005518,0.02399347,87616.0,87605.0,0.0114227]
[1766959005715,0.05712,87617.0,87605.0,0.0114227]
[1766959006014,0.02399347,87616.0,87605.0,0.0114227]
[1766959006214,0.05712,87617.0,87605.0,0.0114227]
[1766959043544,0.02402507,87616.0,87605.0,0.0114227]
[1766959043737,0.05712,87617.0,87605.0,0.0114227]
[1766959043939,0.02402507,87616.0,87605.0,0.0114227]
[1766959044136,0.05712,87617.0,87605.0,0.0114227]
[1766959044337,0.02402513,87616.0,87605.0,0.0114227]
[1766959044532,0.05712,87617.0,87605.0,0.0114227]
[1766959044733,0.08114513,87616.0,87605.0,0.0414227]
[1766959044946,0.05712,87616.0,87605.0,0.0414227]
[1766959072381,0.05712,87616.0,87610.0,0.00105796]
[1766959073383,0.05712,87616.0,87613.0,0.00105796]
[1766959073782,0.05712,87616.0,87605.0,0.0114227]
[1766959073986,0.05712,87616.0,87605.0,0.0414227]
[1766959089586,0.05712,87616.0,87602.0,0.05252248]
[1766959089886,0.05712,87616.0,87602.0,0.0414232]
[1766959095692,0.05712,87616.0,87602.0,0.03]
[1766959099099,0.05712,87616.0,87603.0,0.011423]
[1766959099397,0.05712,87616.0,87603.0,0.041423]
[1766959129516,0.02401004,87615.0,87603.0,0.03]
[1766959129709,0.05712,87616.0,87603.0,0.03]
[1766959129910,0.02401004,87615.0,87603.0,0.03]
[1766959130214,0.05712,87616.0,87603.0,0.03]
[1766959143233,0.05712,87616.0,87604.0,0.0114229]
[1766959143435,0.05712,87616.0,87604.0,0.0414229]
[1766959150441,0.05712,87616.0,87604.0,0.03]
[1766959163046,0.05712,87616.0,87604.0,0.0414229]
[1766959163649,0.02409739,87615.0,87604.0,0.0414229]
[1766959163852,0.05712,87616.0,87604.0,0.0414229]
[1766959164152,0.02409739,87615.0,87604.0,0.0414229]
[1766959164350,0.05712,87616.0,87604.0,0.0414229]
[1766959164552,0.02409741,87615.0,87604.0,0.0414229]
[1766959164756,0.05712,87616.0,87604.0,0.0414229]
[1766959165052,0.02409741,87615.0,87604.0,0.0414229]
[1766959165351,0.05712,87616.0,87604.0,0.0414229]
[1766959165650,0.02409742,87615.0,87604.0,0.0414229]
[1766959165848,0.05712,87616.0,87604.0,0.0414229]
[1766959166051,0.02409742,87615.0,87604.0,0.0414229]
[1766959166250,0.05712,87616.0,87604.0,0.0414229]
[1766959166447,0.02409743,87615.0,87604.0,0.0414229]
[1766959166652,0.05712,87616.0,87604.0,0.03]
[1766959166962,0.02409743,87615.0,87604.0,0.03]
[1766959167142,0.05712,87616.0,87604.0,0.03]
[1766959167342,0.02409744,87615.0,87604.0,0.03]
[1766959167637,0.05712,87616.0,87604.0,0.03]
[1766959167843,0.02409745,87615.0,87604.0,0.03]
[1766959168052,0.05712,87616.0,87604.0,0.03]
[1766959168351,0.02409745,87615.0,87604.0,0.03]
[1766959168652,0.05712,87616.0,87604.0,0.03]
[1766959168843,0.02409747,87615.0,87604.0,0.03]
[1766959169044,0.05712,87616.0,87604.0,0.03]
[1766959169244,0.02409747,87615.0,87604.0,0.03]
[1766959169451,0.05712,87616.0,87604.0,0.03]
[1766959169650,0.02409749,87615.0,87604.0,0.03]
[1766959169844,0.05712,87616.0,87604.0,0.03]
[1766959170051,0.02409749,87615.0,87604.0,0.03]
[1766959170344,0.05712,87616.0,87604.0,0.03]
[1766959170546,0.02409749,87615.0,87604.0,0.03]
[1766959170755,0.05712,87616.0,87604.0,0.03]
[1766959171054,0.02409749,87615.0,87604.0,0.03]
[1766959171350,0.05712,87616.0,87604.0,0.03]
[1766959171541,0.02409751,87615.0,87604.0,0.03]
[1766959171737,0.05606193,87616.0,87604.0,0.03]
[1766959171942,0.02409751,87615.0,87604.0,0.03]
[1766959172151,0.05606193,87616.0,87604.0,0.03]
[1766959172351,0.02409755,87615.0,87604.0,0.03]
[1766959172553,0.05606193,87616.0,87604.0,0.03]
[1766959172852,0.02409755,87615.0,87604.0,0.03]
[1766959173153,0.05606193,87616.0,87604.0,0.03]
[1766959173343,0.02414765,87615.0,87604.0,0.03]
[1766959173546,0.05606193,87616.0,87604.0,0.03]
[1766959184561,0.05606193,87616.0,87605.0,0.0114228]
[1766959184762,0.05606193,87616.0,87605.0,0.0214228]
[1766959185759,0.05606193,87616.0,87605.0,0.01]
[1766959192161,0.1084984,87640.0,87606.0,0.2289571]
[1766959192361,0.08126376,87639.0,87620.0,0.11481554]
[1766959192563,0.02414376,87638.0,87622.0,0.0114205]
[1766959192763,0.02414376,87637.0,87622.0,0.0114205]
[1766959193061,0.02414376,87636.0,87622.0,0.0114205]
[1766959193267,0.00017121,87638.0,87622.0,0.0114205]
[1766959193458,0.02411911,87637.0,87622.0,0.0114205]
[1766959193660,0.02411911,87636.0,87622.0,0.0114205]
[1766959193863,0.00017121,87638.0,87622.0,0.0114205]
[1766959194062,0.02411911,87637.0,87622.0,0.0114205]
[1766959194261,0.00017121,87638.0,87622.0,0.0114205]
[1766959194470,0.02411027,87637.0,87622.0,0.0114205]
[1766959194671,0.00017121,87638.0,87622.0,0.0114205]
[1766959194856,0.02411026,87637.0,87622.0,0.0114205]
[1766959195061,0.00017121,87638.0,87622.0,0.0114205]
[1766959195258,0.00017121,87638.0,87621.0,0.00017121]
[1766959195259,0.00017121,87638.0,87624.0,0.0114202]
[1766959198465,0.00017121,87638.0,87621.0,0.00017121]
[1766959198466,0.11481554,87650.0,87633.0,0.0114191]
[1766959198661,0.02409055,87649.0,87633.0,0.0114191]
[1766959198973,0.08121055,87648.0,87636.0,0.0114187]
[1766959199159,0.21189554,87650.0,87636.0,0.0114187]
[1766959199160,0.08121055,87647.0,87636.0,0.0114187]
[1766959199357,0.05712,87647.0,87633.0,0.01159041]
[1766959200369,0.00017121,87650.0,87635.0,0.0114188]
[1766959200667,0.05712,87653.0,87640.0,0.12623364]
[1766959200877,0.05712,87654.0,87640.0,0.0114181]
[1766959201464,0.11481554,87650.0,87636.0,0.0114187]
[1766959201765,0.11481554,87650.0,87636.0,0.02]
[1766959202165,0.00017121,87652.0,87636.0,0.02]
[1766959206374,0.0114168,87651.0,87636.0,0.02]
[1766959208772,0.0114168,87651.0,87635.0,0.05712]
[1766959209165,0.11481554,87650.0,87635.0,0.05712]
[1766959209372,0.0114168,87651.0,87635.0,0.05712]
[1766959209579,0.11481554,87650.0,87635.0,0.05712]
[1766959214976,0.0114168,87651.0,87635.0,0.05712]
[1766959215176,0.11481554,87650.0,87635.0,0.05712]
[1766959215973,0.11481554,87650.0,87636.0,0.05712]
[1766959224285,0.0114171,87649.0,87636.0,0.05712]
[1766959241710,0.0114174,87647.0,87633.0,0.00017121]
[1766959241901,0.02407845,87646.0,87633.0,0.00017121]
[1766959242101,0.02407845,87645.0,87633.0,0.00017121]
[1766959242309,0.02407845,87644.0,87633.0,0.00017121]
[1766959242508,0.00017121,87652.0,87633.0,0.00017121]
[1766959242509,0.011418,87642.0,87633.0,0.00017121]
[1766959242714,0.02407845,87641.0,87630.0,0.05712]
[1766959242919,0.02407845,87640.0,87630.0,0.05712]
[1766959243108,0.011418,87642.0,87630.0,0.05712]
[1766959243311,0.02407467,87641.0,87630.0,0.05712]
[1766959243510,0.02407467,87640.0,87630.0,0.05712]
[1766959243711,0.0240748,87639.0,87630.0,0.05712]
[1766959244020,0.0114176,87645.0,87630.0,0.05712]
[1766959244209,0.02407298,87644.0,87630.0,0.05712]
[1766959244517,0.02407298,87643.0,87630.0,0.05712]
[1766959244709,0.02407298,87642.0,87630.0,0.05712]
[1766959244910,0.02407298,87641.0,87630.0,0.05712]
[1766959245118,0.02407298,87640.0,87630.0,0.05712]
[1766959245320,0.02407298,87639.0,87630.0,0.05712]
[1766959245508,0.0114176,87645.0,87630.0,0.05712]
[1766959245713,0.02407163,87644.0,87630.0,0.05712]
[1766959245914,0.02407163,87643.0,87630.0,0.05712]
[1766959246124,0.02407163,87642.0,87630.0,0.05712]
[1766959246321,0.02407163,87641.0,87630.0,0.05712]
[1766959246525,0.02407163,87640.0,87630.0,0.05712]
[1766959246718,0.0114176,87645.0,87630.0,0.05712]
[1766959247022,0.02407054,87644.0,87630.0,0.05712]
[1766959247223,0.02407054,87643.0,87630.0,0.05712]
[1766959247413,0.02407054,87642.0,87630.0,0.05712]
[1766959247613,0.02407054,87641.0,87630.0,0.05712]
[1766959247814,0.02407054,87640.0,87630.0,0.05712]
[1766959248119,0.0114176,87645.0,87630.0,0.05712]
[1766959248310,0.02406892,87644.0,87631.0,0.0114194]
[1766959248514,0.02406892,87643.0,87631.0,0.0114194]
[1766959248714,0.02406892,87642.0,87631.0,0.0114194]
[1766959248914,0.02406892,87641.0,87631.0,0.0114194]
[1766959249227,0.02406892,87640.0,87631.0,0.0114194]
[1766959249414,0.0114172,87648.0,87631.0,0.0114194]
[1766959249714,0.02406837,87647.0,87631.0,0.0114194]
[1766959249911,0.02406837,87646.0,87631.0,0.0114194]
[1766959250126,0.02406837,87645.0,87631.0,0.0114194]
[1766959250428,0.02406837,87644.0,87631.0,0.0114194]
[1766959250620,0.02406837,87643.0,87631.0,0.0114194]
[1766959250822,0.02406837,87642.0,87631.0,0.0114194]
[1766959251023,0.02406837,87641.0,87631.0,0.0114194]
[1766959251224,0.02406837,87640.0,87631.0,0.0114194]
[1766959251425,0.0114172,87648.0,87631.0,0.0114194]
[1766959251625,0.02406763,87647.0,87631.0,0.0114194]
[1766959251828,0.02406763,87646.0,87630.0,0.05712]
[1766959252026,0.02406763,87645.0,87630.0,0.05712]
[1766959252218,0.02406763,87644.0,87630.0,0.05712]
[1766959252415,0.02406763,87643.0,87630.0,0.05712]
[1766959252614,0.02406763,87642.0,87630.0,0.05712]
[1766959252822,0.02406763,87641.0,87630.0,0.05712]
[1766959253024,0.02406763,87640.0,87630.0,0.05712]
[1766959253222,0.02406763,87639.0,87630.0,0.05712]
[1766959253429,0.0114172,87648.0,87630.0,0.05712]
[1766959253632,0.02406719,87647.0,87630.0,0.05712]
[1766959253828,0.02406719,87646.0,87630.0,0.05712]
[1766959254022,0.02406719,87645.0,87630.0,0.05712]
[1766959254225,0.02406719,87644.0,87630.0,0.05712]
[1766959254427,0.02406719,87643.0,87630.0,0.05712]
[1766959254725,0.02406719,87642.0,87630.0,0.05712]
[1766959254926,0.02406719,87641.0,87630.0,0.05712]
[1766959255138,0.02406719,87640.0,87630.0,0.05712]
[1766959255325,0.02406719,87639.0,87630.0,0.05712]
[1766959255526,0.0114172,87648.0,87630.0,0.05712]
[1766959255835,0.0114175,87646.0,87630.0,0.05712]
[1766959256135,0.02406694,87645.0,87630.0,0.05712]
[1766959256335,0.02406694,87644.0,87630.0,0.05712]
[1766959256634,0.02406694,87643.0,87630.0,0.05712]
[1766959256933,0.02406694,87642.0,87630.0,0.05712]
[1766959257140,0.02406694,87641.0,87630.0,0.05712]
[1766959257434,0.02406694,87640.0,87630.0,0.05712]
[1766959257735,0.02406694,87639.0,87630.0,0.05712]
[1766959258035,0.0114175,87646.0,87630.0,0.05712]
[1766959258334,0.02406706,87645.0,87630.0,0.05712]
[1766959258535,0.02406706,87644.0,87630.0,0.05712]
[1766959258725,0.02406706,87643.0,87630.0,0.05712]
[1766959258925,0.02406706,87642.0,87630.0,0.05712]
[1766959259127,0.02406706,87641.0,87630.0,0.05712]
[1766959259439,0.02406706,87640.0,87630.0,0.05712]
[1766959259735,0.02406706,87639.0,87630.0,0.05712]
[1766959259933,0.0114175,87646.0,87630.0,0.05712]
[1766959260235,0.02406719,87645.0,87630.0,0.05712]
[1766959260428,0.02406719,87644.0,87630.0,0.05712]
[1766959260627,0.02406719,87643.0,87630.0,0.05712]
[1766959260829,0.02406719,87642.0,87630.0,0.05712]
[1766959261034,0.02406719,87641.0,87630.0,0.05712]
[1766959261235,0.02406719,87640.0,87630.0,0.05712]
[1766959261438,0.02406719,87639.0,87630.0,0.05712]
[1766959261637,0.0114175,87646.0,87630.0,0.05712]
[1766959268452,0.0114178,87644.0,87630.0,0.05712]
[1766959270347,0.0114181,87642.0,87630.0,0.05712]
[1766959273550,0.02417129,87641.0,87630.0,0.05712]
[1766959273751,0.02417129,87640.0,87630.0,0.05712]
[1766959273951,0.02417129,87639.0,87630.0,0.05712]
[1766959274152,0.02417129,87638.0,87630.0,0.05712]
[1766959274348,0.02417129,87637.0,87630.0,0.05712]
[1766959274552,0.0114181,87642.0,87630.0,0.05712]
[1766959274849,0.02417128,87641.0,87630.0,0.05712]
[1766959275049,0.02417128,87640.0,87630.0,0.05712]
[1766959275238,0.02417128,87639.0,87630.0,0.05712]
[1766959275442,0.02417128,87638.0,87630.0,0.05712]
[1766959275647,0.02417128,87637.0,87630.0,0.05712]
[1766959275846,0.0114181,87642.0,87630.0,0.05712]
[1766959276148,0.02417128,87641.0,87630.0,0.05712]
[1766959276342,0.02417128,87640.0,87630.0,0.05712]
[1766959276543,0.02417128,87639.0,87630.0,0.05712]
[1766959276743,0.02417128,87638.0,87630.0,0.05712]
[1766959276948,0.02417128,87637.0,87630.0,0.05712]
[1766959277149,0.0114181,87642.0,87630.0,0.05712]
[1766959277345,0.02417132,87641.0,87630.0,0.05712]
[1766959277545,0.02417132,87640.0,87630.0,0.05712]
[1766959277746,0.02417132,87639.0,87630.0,0.05712]
[1766959277943,0.02417132,87638.0,87630.0,0.05712]
[1766959278144,0.02417132,87637.0,87630.0,0.05712]
[1766959278345,0.0114181,87642.0,87630.0,0.05712]
[1766959278544,0.02417133,87641.0,87630.0,0.05712]
[1766959278751,0.02417133,87640.0,87630.0,0.05712]
[1766959278948,0.02417133,87639.0,87630.0,0.05712]
[1766959279149,0.02417133,87638.0,87630.0,0.05712]
[1766959279350,0.02417133,87637.0,87630.0,0.05712]
[1766959279550,0.0114181,87642.0,87630.0,0.05712]
[1766959279741,0.02417131,87641.0,87630.0,0.05712]
[1766959279945,0.02417131,87640.0,87630.0,0.05712]
[1766959280145,0.02417131,87639.0,87630.0,0.05712]
[1766959280351,0.02417131,87638.0,87630.0,0.05712]
[1766959280549,0.02417131,87637.0,87630.0,0.05712]
[1766959280845,0.0114181,87642.0,87630.0,0.05712]
[1766959281053,0.0241713,87641.0,87630.0,0.05712]
[1766959281352,0.0241713,87640.0,87630.0,0.05712]
[1766959281651,0.0241713,87639.0,87630.0,0.05712]
[1766959281852,0.0241713,87638.0,87630.0,0.05712]
[1766959282051,0.0241713,87637.0,87630.0,0.05712]
[1766959282254,0.0114181,87642.0,87630.0,0.05712]
[1766959282453,0.02417137,87641.0,87630.0,0.05712]
[1766959282658,0.02417137,87640.0,87630.0,0.05712]
[1766959282951,0.02417137,87639.0,87630.0,0.05712]
[1766959283152,0.02417137,87638.0,87630.0,0.05712]
[1766959283361,0.02417137,87637.0,87630.0,0.05712]
[1766959283546,0.0114181,87642.0,87630.0,0.05712]
[1766959283746,0.02417142,87641.0,87630.0,0.05712]
[1766959284055,0.02417142,87640.0,87630.0,0.05712]
[1766959284348,0.02417142,87639.0,87630.0,0.05712]
[1766959284547,0.02417142,87638.0,87630.0,0.05712]
[1766959284749,0.0114181,87642.0,87630.0,0.05712]
[1766959285058,0.02417147,87641.0,87630.0,0.05712]
[1766959285356,0.02417147,87640.0,87630.0,0.05712]
[1766959285554,0.02417147,87639.0,87630.0,0.05712]
[1766959285754,0.02417147,87638.0,87630.0,0.05712]
[1766959285950,0.0114181,87642.0,87630.0,0.05712]
[1766959286153,0.02417155,87641.0,87630.0,0.05712]
[1766959286350,0.02417155,87640.0,87630.0,0.05712]
[1766959286551,0.02417155,87639.0,87630.0,0.05712]
[1766959286752,0.02417155,87638.0,87630.0,0.05712]
[1766959286950,0.0114181,87642.0,87630.0,0.05712]
[1766959287152,0.02417163,87641.0,87630.0,0.05712]
[1766959287352,0.02417163,87640.0,87630.0,0.05712]
[1766959287552,0.02417163,87639.0,87630.0,0.05712]
[1766959287749,0.02417163,87638.0,87630.0,0.05712]
[1766959288042,0.0114181,87642.0,87630.0,0.05712]
[1766959288247,0.02417174,87641.0,87630.0,0.05712]
[1766959288447,0.02417174,87640.0,87630.0,0.05712]
[1766959288642,0.02417174,87639.0,87630.0,0.05712]
[1766959288843,0.02417174,87638.0,87630.0,0.05712]
[1766959289057,0.0114181,87642.0,87630.0,0.05712]
[1766959289258,0.02417176,87641.0,87630.0,0.05712]
[1766959289456,0.02417176,87640.0,87630.0,0.05712]
[1766959289656,0.02417176,87639.0,87630.0,0.05712]
[1766959289858,0.02417176,87638.0,87630.0,0.05712]
[1766959290159,0.0114181,87642.0,87630.0,0.05712]
[1766959290359,0.02417177,87641.0,87630.0,0.05712]
[1766959290554,0.02417177,87640.0,87630.0,0.05712]
[1766959290755,0.02417177,87639.0,87630.0,0.05712]
[1766959291048,0.02417177,87638.0,87630.0,0.05712]
[1766959291253,0.0114181,87642.0,87630.0,0.05712]
[1766959291465,0.02417177,87641.0,87630.0,0.05712]
[1766959291648,0.02417177,87640.0,87630.0,0.05712]
[1766959291851,0.02417177,87639.0,87630.0,0.05712]
[1766959292060,0.02417177,87638.0,87630.0,0.05712]
[1766959292264,0.0114181,87642.0,87630.0,0.05712]
[1766959292459,0.02417177,87641.0,87630.0,0.05712]
[1766959292762,0.02417177,87640.0,87630.0,0.05712]
[1766959292963,0.02417177,87639.0,87630.0,0.05712]
[1766959293164,0.02417177,87638.0,87630.0,0.05712]
[1766959293463,0.0114181,87642.0,87630.0,0.05712]
[1766959293664,0.02424453,87641.0,87630.0,0.05712]
[1766959293864,0.02424453,87640.0,87630.0,0.05712]
[1766959294064,0.02424453,87639.0,87630.0,0.05712]
[1766959294265,0.02424453,87638.0,87630.0,0.05712]
[1766959294461,0.03566431,87637.0,87616.0,0.01640481]
[1766959294660,0.0114189,87635.0,87617.0,0.1542]
[1766959294860,0.0114189,87635.0,87617.0,0.1842]
[1766959295067,0.0114189,87635.0,87617.0,0.19732875]
[1766959295368,0.0114189,87635.0,87617.0,0.19749996]
[1766959300170,0.0114189,87635.0,87617.0,0.04329996]
[1766959300469,0.11477687,87630.0,87618.0,0.1542]
[1766959300769,0.11477687,87630.0,87618.0,0.1842]
[1766959305462,0.11477687,87630.0,87619.0,0.1542]
[1766959305667,0.11477687,87630.0,87619.0,0.1642]
[1766959311469,0.11477687,87630.0,87616.0,0.00515462]
[1766959311675,0.11477687,87630.0,87617.0,0.05712]
[1766959311874,0.11477687,87630.0,87617.0,0.07712]
[1766959314978,0.11477687,87627.0,87617.0,0.07712]
[1766959315276,0.11477687,87630.0,87617.0,0.07712]
[1766959316279,0.11477687,87627.0,87617.0,0.07712]
[1766959317775,0.11477687,87627.0,87611.0,0.011422]
[1766959317981,0.11477687,87621.0,87613.0,0.0114217]
[1766959318182,0.11477687,87621.0,87613.0,0.0414217]
[1766959318380,0.11477687,87621.0,87614.0,0.1542]
[1766959318581,0.11477687,87621.0,87614.0,0.1842]
[1766959319281,0.11477687,87624.0,87614.0,0.1842]
[1766959321384,0.11477687,87624.0,87615.0,0.0114215]
[1766959321583,0.11477687,87624.0,87615.0,0.0414215]
[1766959321774,0.00017121,87633.0,87615.0,0.0414215]
[1766959321975,0.11477687,87625.0,87615.0,0.0414215]
[1766959326276,0.11477687,87630.0,87615.0,0.0414215]
[1766959326883,0.11477687,87625.0,87615.0,0.0414215]
[1766959328076,0.11477687,87630.0,87615.0,0.0414215]
[1766959331287,0.02470923,87629.0,87615.0,0.0414215]
[1766959331487,0.11477687,87630.0,87615.0,0.0414215]
[1766959331687,0.02470923,87629.0,87615.0,0.0414215]
[1766959331890,0.11477687,87630.0,87615.0,0.0414215]
[1766959332089,0.02470923,87629.0,87615.0,0.0414215]
[1766959332389,0.11477687,87630.0,87615.0,0.0414215]
[1766959333591,0.02470964,87629.0,87615.0,0.0414215]
[1766959334491,0.11477687,87630.0,87615.0,0.0414215]
[1766959334698,0.11477687,87625.0,87615.0,0.03]
[1766959336789,0.11477687,87625.0,87616.0,0.05712]
[1766959343101,0.12619647,87630.0,87617.0,0.05712]
[1766959343293,0.02471118,87629.0,87617.0,0.05712]
[1766959343507,0.02471118,87628.0,87617.0,0.05712]
[1766959343707,0.12619647,87630.0,87617.0,0.05712]
[1766959343907,0.02471118,87629.0,87617.0,0.05712]
[1766959344111,0.02471118,87628.0,87617.0,0.05712]
[1766959344312,0.12619647,87630.0,87617.0,0.05712]
[1766959344512,0.02471109,87629.0,87617.0,0.05712]
[1766959344712,0.02471109,87628.0,87617.0,0.05712]
[1766959345012,0.12619647,87630.0,87617.0,0.05712]
[1766959345214,0.02471089,87629.0,87617.0,0.05712]
[1766959345405,0.02471089,87628.0,87617.0,0.05712]
[1766959345606,0.12619647,87630.0,87617.0,0.05712]
[1766959345812,0.02471082,87629.0,87617.0,0.05712]
[1766959346112,0.02471082,87628.0,87617.0,0.05712]
[1766959346312,0.11477687,87630.0,87617.0,0.05712]
[1766959346508,0.02471063,87629.0,87617.0,0.05712]
[1766959346707,0.02471063,87628.0,87617.0,0.05712]
[1766959346912,0.11477687,87630.0,87617.0,0.05712]
[1766959347107,0.02471059,87629.0,87614.0,0.0114215]
[1766959347308,0.0114201,87626.0,87615.0,0.05712]
[1766959347513,0.13948746,87625.0,87612.0,0.05712]
[1766959347710,0.22955374,87622.0,87612.0,0.0371458]
[1766959347908,0.11477687,87622.0,87612.0,0.05026]
[1766959348115,0.11477687,87622.0,87612.0,0.02026]
[1766959349213,0.11477687,87622.0,87611.0,0.05712]
[1766959350819,0.11477687,87622.0,87611.0,0.05025]
[1766959360526,0.0114203,87625.0,87611.0,0.05025]
[1766959360726,0.02466402,87624.0,87611.0,0.05025]
[1766959360927,0.02466402,87623.0,87611.0,0.05025]
[1766959361131,0.0114203,87625.0,87611.0,0.05025]
[1766959361318,0.0114205,87623.0,87611.0,0.05025]
[1766959365829,0.12623268,87621.0,87608.0,0.00011413]
[1766959366128,0.011421,87619.0,87608.0,0.00011413]
[1766959368430,0.05712,87620.0,87608.0,0.00011413]
[1766959368731,0.02466048,87619.0,87608.0,0.00011413]
[1766959368932,0.05712,87620.0,87608.0,0.00011413]
[1766959369131,0.02466044,87619.0,87608.0,0.00011413]
[1766959369430,0.05712,87620.0,87608.0,0.00011413]
[1766959369731,0.02465978,87619.0,87608.0,0.00011413]
[1766959370030,0.05712,87620.0,87608.0,0.00011413]
[1766959370230,0.02465926,87619.0,87608.0,0.00011413]
[1766959370431,0.05712,87620.0,87608.0,0.00011413]
[1766959370634,0.02465925,87619.0,87608.0,0.00011413]
[1766959370929,0.05712,87620.0,87608.0,0.00011413]
[1766959371129,0.02465925,87619.0,87608.0,0.00011413]
[1766959371324,0.05712,87620.0,87608.0,0.00011413]
[1766959371528,0.0246591,87619.0,87608.0,0.00011413]
[1766959371726,0.05712,87620.0,87608.0,0.00011413]
[1766959371928,0.02465884,87619.0,87608.0,0.00011413]
[1766959372129,0.05712,87620.0,87608.0,0.00011413]
[1766959372431,0.02465905,87619.0,87608.0,0.00011413]
[1766959372633,0.05712,87620.0,87608.0,0.00011413]
[1766959372833,0.02465905,87619.0,87608.0,0.00011413]
[1766959373130,0.05712,87620.0,87608.0,0.00011413]
[1766959373332,0.02465961,87619.0,87608.0,0.00011413]
[1766959373631,0.05712,87620.0,87608.0,0.00011413]
[1766959373826,0.02465961,87619.0,87608.0,0.00011413]
[1766959374033,0.05712,87620.0,87608.0,0.00011413]
[1766959374235,0.02466056,87619.0,87608.0,0.00011413]
[1766959374434,0.05712,87620.0,87608.0,0.00011413]
[1766959374731,0.02466058,87619.0,87608.0,0.00011413]
[1766959375032,0.05712,87620.0,87608.0,0.00011413]
[1766959375232,0.02466197,87619.0,87608.0,0.00011413]
[1766959375434,0.05712,87620.0,87608.0,0.00011413]
[1766959375631,0.02466197,87619.0,87608.0,0.00011413]
[1766959375829,0.05712,87620.0,87608.0,0.00011413]
[1766959376032,0.02466197,87619.0,87608.0,0.00011413]
[1766959376329,0.02466197,87618.0,87608.0,0.00011413]
[1766959376529,0.05712,87620.0,87608.0,0.00011413]
[1766959376732,0.02466384,87619.0,87608.0,0.00011413]
[1766959376931,0.05712,87620.0,87608.0,0.00011413]
[1766959377132,0.02466375,87619.0,87608.0,0.00011413]
[1766959377334,0.02466375,87618.0,87608.0,0.00011413]
[1766959377533,0.068541,87620.0,87608.0,0.00011413]
[1766959377737,0.02466651,87619.0,87608.0,0.00011413]
[1766959377939,0.02466651,87618.0,87608.0,0.00011413]
[1766959378137,0.068541,87620.0,87608.0,0.00011413]
[1766959378437,0.02466625,87619.0,87608.0,0.00011413]
[1766959378636,0.02466625,87618.0,87608.0,0.00011413]
[1766959378840,0.068541,87620.0,87608.0,0.00011413]
[1766959379041,0.02466625,87619.0,87608.0,0.00011413]
[1766959379242,0.02466625,87618.0,87608.0,0.00011413]
[1766959379433,0.068541,87620.0,87608.0,0.00011413]
[1766959379632,0.02466609,87619.0,87608.0,0.00011413]
[1766959379933,0.02466609,87618.0,87608.0,0.00011413]
[1766959380133,0.068541,87620.0,87608.0,0.00011413]
[1766959380343,0.02466601,87619.0,87608.0,0.00011413]
[1766959380640,0.02466601,87618.0,87608.0,0.00011413]
[1766959380941,0.068541,87620.0,87608.0,0.00011413]
[1766959381143,0.02466601,87619.0,87608.0,0.00011413]
[1766959381332,0.02466601,87618.0,87608.0,0.00011413]
[1766959381532,0.068541,87620.0,87608.0,0.00011413]
[1766959381729,0.02466604,87619.0,87608.0,0.00011413]
[1766959382042,0.02466604,87618.0,87608.0,0.00011413]
[1766959382238,0.05712,87620.0,87608.0,0.00011413]
[1766959382435,0.02466627,87619.0,87608.0,0.00011413]
[1766959382643,0.05712,87620.0,87608.0,0.00011413]
[1766959382832,0.02466625,87619.0,87608.0,0.00011413]
[1766959383032,0.05712,87620.0,87608.0,0.00011413]
[1766959383234,0.02450923,87619.0,87608.0,0.00011413]
[1766959383443,0.05712,87620.0,87608.0,0.00011413]
[1766959383640,0.02450946,87619.0,87608.0,0.00011413]
[1766959383837,0.05712,87620.0,87608.0,0.00011413]
[1766959384039,0.02450946,87619.0,87608.0,0.00011413]
[1766959384234,0.05712,87620.0,87608.0,0.00011413]
[1766959384440,0.02451051,87619.0,87608.0,0.00011413]
[1766959384640,0.05712,87620.0,87608.0,0.00011413]
[1766959384938,0.02451046,87619.0,87608.0,0.00011413]
[1766959385140,0.05712,87620.0,87608.0,0.00011413]
[1766959385342,0.02451107,87619.0,87608.0,0.00011413]
[1766959385544,0.05712,87620.0,87608.0,0.00011413]
[1766959385744,0.02451105,87619.0,87608.0,0.00011413]
[1766959385944,0.05712,87620.0,87608.0,0.00011413]
[1766959386144,0.02451107,87619.0,87608.0,0.00011413]
[1766959386342,0.05712,87620.0,87608.0,0.00011413]
[1766959386542,0.02451176,87619.0,87608.0,0.00011413]
[1766959386742,0.05712,87620.0,87608.0,0.00011413]
[1766959386941,0.02451178,87619.0,87608.0,0.00011413]
[1766959387144,0.05712,87620.0,87608.0,0.00011413]
[1766959387443,0.02451512,87619.0,87608.0,0.00011413]
[1766959387645,0.05712,87620.0,87608.0,0.00011413]
[1766959387841,0.02451516,87619.0,87608.0,0.00011413]
[1766959388040,0.05712,87620.0,87608.0,0.00011413]
[1766959388242,0.02451576,87619.0,87608.0,0.00011413]
[1766959388438,0.05712,87620.0,87608.0,0.00011413]
[1766959388638,0.02451605,87619.0,87608.0,0.00011413]
[1766959388834,0.05712,87630.0,87617.0,0.0114212]
[1766959389041,0.02451643,87629.0,87619.0,0.0114209]
[1766959389245,0.02451643,87628.0,87619.0,0.0114209]
[1766959389436,0.02451643,87627.0,87619.0,0.0114209]
[1766959389637,0.02451643,87626.0,87615.0,0.0114214]
[1766959389832,0.00017121,87633.0,87617.0,0.0114211]
[1766959392046,0.00017121,87633.0,87613.0,0.0114217]
[1766959399354,0.01159051,87633.0,87613.0,0.0114217]
[1766959401954,0.02440404,87632.0,87613.0,0.0114217]
[1766959402249,0.08152404,87631.0,87613.0,0.0114217]
[1766959402450,0.02440404,87630.0,87613.0,0.0114217]
[1766959402642,0.02440404,87629.0,87613.0,0.0114217]
[1766959402843,0.02440404,87628.0,87613.0,0.0114217]
[1766959403051,0.02440404,87627.0,87613.0,0.0114217]
[1766959403244,0.02440404,87626.0,87613.0,0.0114217]
[1766959403445,0.02440404,87625.0,87613.0,0.0114217]
[1766959403654,0.02440404,87624.0,87613.0,0.0114217]
[1766959403951,0.05712,87631.0,87613.0,0.0114217]